[Event "Late-Titled-Tuesday-Blitz-June-18-2024"]
[Site "Chess.com"]
[Date "2024.06.18"]
[Round "9"]
[White "PNEPaul"]
[Black "Commando_Droid"]
[Result "0-1"]
[WhiteElo "1963"]
[BlackElo "2698"]
[TimeControl "180+1"]
[EndTime "15:46:23 PDT"]
[Termination "Commando_Droid won on time"]

1. e4 {[%clk 0:03:00.9]} 1... e5 {[%clk 0:02:59]} 2. Nf3 {[%clk 0:03:00.9]} 2...
Nc6 {[%clk 0:02:59.6]} 3. Bc4 {[%clk 0:03:00.8]} 3... Nf6 {[%clk 0:02:57.2]} 4.
d4 {[%clk 0:03:00.1]} 4... exd4 {[%clk 0:02:55.3]} 5. O-O {[%clk 0:02:59]} 5...
Nxe4 {[%clk 0:02:55]} 6. Re1 {[%clk 0:02:58.4]} 6... d5 {[%clk 0:02:55.6]} 7.
Bxd5 {[%clk 0:02:58.5]} 7... Qxd5 {[%clk 0:02:55.5]} 8. Nc3 {[%clk 0:02:58.7]}
8... Qh5 {[%clk 0:02:43.6]} 9. Nxe4 {[%clk 0:02:58.2]} 9... Be7 {[%clk
0:01:55.3]} 10. Ng3 {[%clk 0:02:54.5]} 10... Qd5 {[%clk 0:01:52.9]} 11. Bg5
{[%clk 0:02:49.6]} 11... f6 {[%clk 0:01:51.8]} 12. c4 {[%clk 0:02:34.2]} 12...
Qxc4 {[%clk 0:01:41.8]} 13. Rc1 {[%clk 0:02:09.9]} 13... Qxa2 {[%clk 0:01:24.8]}
14. Nxd4 {[%clk 0:02:06.7]} 14... fxg5 {[%clk 0:01:09.5]} 15. Nxc6 {[%clk
0:02:06.2]} 15... bxc6 {[%clk 0:01:10.4]} 16. Qf3 {[%clk 0:01:24.1]} 16... Qd5
{[%clk 0:00:56.6]} 17. Qh5+ {[%clk 0:01:23]} 17... g6 {[%clk 0:00:55.4]} 18. Qh6
{[%clk 0:01:21.9]} 18... Be6 {[%clk 0:00:36.8]} 19. Rcd1 {[%clk 0:01:11.3]}
19... Qb3 {[%clk 0:00:33.7]} 20. Qg7 {[%clk 0:01:03.1]} 20... Rf8 {[%clk
0:00:21.8]} 21. Qxh7 {[%clk 0:01:02.6]} 21... Bf7 {[%clk 0:00:18.6]} 22. Ne4
{[%clk 0:00:56.6]} 22... Qe6 {[%clk 0:00:09.2]} 23. Nxg5 {[%clk 0:00:40.6]}
23... Qf6 {[%clk 0:00:08.7]} 24. Nxf7 {[%clk 0:00:36.7]} 24... Qxf7 {[%clk
0:00:08.6]} 25. Qh4 {[%clk 0:00:35.8]} 25... Rd8 {[%clk 0:00:07.5]} 26. Rxd8+
{[%clk 0:00:32.7]} 26... Kxd8 {[%clk 0:00:08.4]} 27. Qd4+ {[%clk 0:00:31.3]}
27... Bd6 {[%clk 0:00:08.6]} 28. Qxa7 {[%clk 0:00:29.7]} 28... Kd7 {[%clk
0:00:08.5]} 29. b4 {[%clk 0:00:27.8]} 29... Re8 {[%clk 0:00:08.6]} 30. Rd1
{[%clk 0:00:26.5]} 30... Qf4 {[%clk 0:00:08.2]} 31. g3 {[%clk 0:00:24.2]} 31...
Qf3 {[%clk 0:00:08.7]} 32. Rf1 {[%clk 0:00:22.3]} 32... Re4 {[%clk 0:00:07]} 33.
Qb8 {[%clk 0:00:19.8]} 33... Rxb4 {[%clk 0:00:06.4]} 34. Qg8 {[%clk 0:00:18.7]}
34... Qf5 {[%clk 0:00:06.9]} 35. Qg7+ {[%clk 0:00:17.5]} 35... Kc8 {[%clk
0:00:07.2]} 36. Re1 {[%clk 0:00:15.4]} 36... Kb7 {[%clk 0:00:07.4]} 37. Rf1
{[%clk 0:00:14.4]} 37... g5 {[%clk 0:00:06.7]} 38. Qc3 {[%clk 0:00:13.7]} 38...
g4 {[%clk 0:00:07]} 39. Qe3 {[%clk 0:00:12.8]} 39... Qb5 {[%clk 0:00:07.5]} 40.
Qh6 {[%clk 0:00:10.6]} 40... Bc5 {[%clk 0:00:08]} 41. Qg5 {[%clk 0:00:08.5]}
41... Bb6 {[%clk 0:00:08]} 42. Qh6 {[%clk 0:00:07.3]} 42... Rb2 {[%clk
0:00:07.8]} 43. Qf6 {[%clk 0:00:06.3]} 43... Qe2 {[%clk 0:00:08.2]} 44. Qf4
{[%clk 0:00:04.2]} 44... Qf3 {[%clk 0:00:07.5]} 45. Qxf3 {[%clk 0:00:03.8]}
45... gxf3 {[%clk 0:00:08.4]} 46. h4 {[%clk 0:00:03.9]} 46... c5 {[%clk
0:00:08.9]} 47. Kh2 {[%clk 0:00:03.2]} 47... c4 {[%clk 0:00:09.3]} 48. Kh3
{[%clk 0:00:02.7]} 48... Rxf2 {[%clk 0:00:09.3]} 0-1

[Event "Late-Titled-Tuesday-Blitz-June-18-2024"]
[Site "Chess.com"]
[Date "2024.06.18"]
[Round "9"]
[White "carloseduar100"]
[Black "LoonsDeKoeben"]
[Result "0-1"]
[WhiteElo "2246"]
[BlackElo "2407"]
[TimeControl "180+1"]
[EndTime "15:46:25 PDT"]
[Termination "LoonsDeKoeben won by resignation"]

1. g3 {[%clk 0:02:56.3]} 1... Nf6 {[%clk 0:02:56.8]} 2. Bg2 {[%clk 0:02:57.2]}
2... g6 {[%clk 0:02:56.8]} 3. Nf3 {[%clk 0:02:58.1]} 3... Bg7 {[%clk 0:02:57.7]}
4. O-O {[%clk 0:02:58.3]} 4... O-O {[%clk 0:02:58.6]} 5. d4 {[%clk 0:02:58.7]}
5... d5 {[%clk 0:02:58.3]} 6. c3 {[%clk 0:02:59.6]} 6... c6 {[%clk 0:02:58.4]}
7. Nbd2 {[%clk 0:03:00.5]} 7... Nbd7 {[%clk 0:02:58.7]} 8. Re1 {[%clk
0:03:01.3]} 8... Re8 {[%clk 0:02:58.9]} 9. e4 {[%clk 0:03:02.2]} 9... dxe4
{[%clk 0:02:59.1]} 10. Nxe4 {[%clk 0:03:03.1]} 10... Nxe4 {[%clk 0:02:58.7]} 11.
Rxe4 {[%clk 0:03:04]} 11... e5 {[%clk 0:02:40.9]} 12. dxe5 {[%clk 0:02:51.7]}
12... Nxe5 {[%clk 0:02:36.8]} 13. Qxd8 {[%clk 0:02:52.2]} 13... Nxf3+ {[%clk
0:02:23.8]} 14. Bxf3 {[%clk 0:02:53.1]} 14... Rxd8 {[%clk 0:02:24.1]} 15. Bg5
{[%clk 0:02:46.5]} 15... f6 {[%clk 0:02:23]} 16. Be3 {[%clk 0:02:39.9]} 16...
Bf8 {[%clk 0:02:06.2]} 17. Re1 {[%clk 0:02:30]} 17... Bf5 {[%clk 0:02:04.9]} 18.
Rd4 {[%clk 0:02:13]} 18... Re8 {[%clk 0:01:58.3]} 19. b4 {[%clk 0:02:05.9]}
19... Re5 {[%clk 0:01:45.4]} 20. Red1 {[%clk 0:02:00.9]} 20... Rae8 {[%clk
0:01:39.7]} 21. Kg2 {[%clk 0:01:59]} 21... g5 {[%clk 0:01:30.6]} 22. Rd8 {[%clk
0:01:58.3]} 22... Kf7 {[%clk 0:01:19.8]} 23. Bh5+ {[%clk 0:01:49.2]} 23... Bg6
{[%clk 0:01:20.2]} 24. R1d7+ {[%clk 0:01:48.6]} 24... R5e7 {[%clk 0:01:20.2]}
25. Bxg6+ {[%clk 0:01:48.7]} 25... hxg6 {[%clk 0:01:19.8]} 26. Rxe7+ {[%clk
0:01:47.8]} 26... Kxe7 {[%clk 0:01:12.8]} 27. Rxe8+ {[%clk 0:01:45.8]} 27...
Kxe8 {[%clk 0:01:13.7]} 28. Bxa7 {[%clk 0:01:45.5]} 28... b5 {[%clk 0:01:10.1]}
29. Kf3 {[%clk 0:01:43.6]} 29... Kd7 {[%clk 0:01:08.2]} 30. Ke4 {[%clk
0:01:42.6]} 30... Ke6 {[%clk 0:01:08.3]} 31. Be3 {[%clk 0:01:30.9]} 31... f5+
{[%clk 0:01:05.4]} 32. Kd4 {[%clk 0:01:23.8]} 32... g4 {[%clk 0:00:57.8]} 33.
Bd2 {[%clk 0:01:11.8]} 33... Bg7+ {[%clk 0:00:57.2]} 34. Kc5 {[%clk 0:01:10]}
34... Kd7 {[%clk 0:00:52]} 35. c4 {[%clk 0:00:59.9]} 35... Bf8+ {[%clk
0:00:49.4]} 36. Kd4 {[%clk 0:01:00.1]} 36... Bg7+ {[%clk 0:00:48.1]} 37. Kd3
{[%clk 0:00:59.8]} 37... Ke6 {[%clk 0:00:31.9]} 38. Bc3 {[%clk 0:00:55.3]} 38...
Bh6 {[%clk 0:00:30.4]} 39. Bd4 {[%clk 0:00:53.1]} 39... Bf8 {[%clk 0:00:19.9]}
40. a3 {[%clk 0:00:41.1]} 40... Bd6 {[%clk 0:00:19.6]} 41. cxb5 {[%clk 0:00:35]}
41... cxb5 {[%clk 0:00:19.9]} 42. Ke3 {[%clk 0:00:34.8]} 42... Kd5 {[%clk
0:00:20]} 43. Kd3 {[%clk 0:00:20.7]} 43... f4 {[%clk 0:00:20.5]} 44. Bf6 {[%clk
0:00:17.1]} 44... f3 {[%clk 0:00:19.5]} 45. Bg5 {[%clk 0:00:16.8]} 45... Be5
{[%clk 0:00:19]} 46. Bc1 {[%clk 0:00:16]} 46... Bf6 {[%clk 0:00:17.4]} 47. Bd2
{[%clk 0:00:13.2]} 47... Bb2 {[%clk 0:00:16.4]} 48. Kc2 {[%clk 0:00:13.5]} 48...
Bd4 {[%clk 0:00:15]} 49. Kb3 {[%clk 0:00:14]} 49... Bxf2 {[%clk 0:00:15]} 50.
Kc2 {[%clk 0:00:13.7]} 50... Bxg3 {[%clk 0:00:14.5]} 51. hxg3 {[%clk 0:00:12]}
51... f2 {[%clk 0:00:14.7]} 52. a4 {[%clk 0:00:11.9]} 52... f1=Q {[%clk
0:00:14.7]} 53. axb5 {[%clk 0:00:12.6]} 53... Qxb5 {[%clk 0:00:14.8]} 54. Kd1
{[%clk 0:00:11.2]} 54... Ke4 {[%clk 0:00:15.3]} 55. Kc1 {[%clk 0:00:10.7]} 55...
Kf3 {[%clk 0:00:16.2]} 56. Kd1 {[%clk 0:00:08.6]} 56... Kxg3 {[%clk 0:00:17.1]}
0-1

[Event "Late-Titled-Tuesday-Blitz-June-18-2024"]
[Site "Chess.com"]
[Date "2024.06.18"]
[Round "9"]
[White "Pelusiansky"]
[Black "ellatambien"]
[Result "1-0"]
[WhiteElo "2587"]
[BlackElo "2700"]
[TimeControl "180+1"]
[EndTime "15:46:26 PDT"]
[Termination "Pelusiansky won on time"]

1. c4 {[%clk 0:03:00.9]} 1... e6 {[%clk 0:02:44.2]} 2. d4 {[%clk 0:03:00.1]}
2... d5 {[%clk 0:02:44.1]} 3. Nc3 {[%clk 0:03:00.5]} 3... c5 {[%clk 0:02:43.7]}
4. cxd5 {[%clk 0:02:45.6]} 4... cxd4 {[%clk 0:02:43.4]} 5. Qa4+ {[%clk
0:02:41.6]} 5... Bd7 {[%clk 0:02:42.6]} 6. Qxd4 {[%clk 0:02:41.5]} 6... exd5
{[%clk 0:02:42.1]} 7. Nf3 {[%clk 0:02:41.3]} 7... Nf6 {[%clk 0:02:23.8]} 8. Bg5
{[%clk 0:02:28.1]} 8... Be7 {[%clk 0:02:19.6]} 9. e3 {[%clk 0:02:05.5]} 9... Nc6
{[%clk 0:02:19.2]} 10. Qd2 {[%clk 0:01:57.8]} 10... O-O {[%clk 0:02:14.2]} 11.
Bd3 {[%clk 0:01:56.3]} 11... Bg4 {[%clk 0:01:59.4]} 12. Bxf6 {[%clk 0:01:44.7]}
12... Bxf6 {[%clk 0:01:58.8]} 13. Nxd5 {[%clk 0:01:38.8]} 13... g6 {[%clk
0:01:45]} 14. Nxf6+ {[%clk 0:01:32.3]} 14... Qxf6 {[%clk 0:01:45.9]} 15. Be4
{[%clk 0:01:06.2]} 15... Rfe8 {[%clk 0:01:37.8]} 16. Bxc6 {[%clk 0:00:57.4]}
16... bxc6 {[%clk 0:01:33.2]} 17. Qd4 {[%clk 0:00:50.7]} 17... Qf5 {[%clk
0:01:30.4]} 18. Nh4 {[%clk 0:00:46.2]} 18... Qh5 {[%clk 0:01:28.3]} 19. O-O
{[%clk 0:00:40.3]} 19... Rad8 {[%clk 0:01:25.8]} 20. Qa4 {[%clk 0:00:31.9]}
20... Qxh4 {[%clk 0:01:00.4]} 21. h3 {[%clk 0:00:32]} 21... h5 {[%clk
0:01:00.8]} 22. hxg4 {[%clk 0:00:31.7]} 22... hxg4 {[%clk 0:01:01.7]} 23. Qf4
{[%clk 0:00:30.2]} 23... Rd2 {[%clk 0:00:59]} 24. b3 {[%clk 0:00:27.6]} 24...
Red8 {[%clk 0:00:54.1]} 25. Rac1 {[%clk 0:00:25.4]} 25... R8d6 {[%clk
0:00:44.6]} 26. e4 {[%clk 0:00:23.7]} 26... g5 {[%clk 0:00:31.6]} 27. Qh2 {[%clk
0:00:23.7]} 27... Qxh2+ {[%clk 0:00:18.6]} 28. Kxh2 {[%clk 0:00:24.6]} 28...
Rxa2 {[%clk 0:00:18.9]} 29. Kg3 {[%clk 0:00:24.5]} 29... Rdd2 {[%clk 0:00:15.4]}
30. Rxc6 {[%clk 0:00:21.4]} 30... Rab2 {[%clk 0:00:15.4]} 31. Rc3 {[%clk
0:00:20.9]} 31... Kg7 {[%clk 0:00:15.5]} 32. Kxg4 {[%clk 0:00:20.6]} 32... Rxf2
{[%clk 0:00:15.9]} 33. Rxf2 {[%clk 0:00:21.1]} 33... Rxf2 {[%clk 0:00:16.4]} 34.
Kxg5 {[%clk 0:00:21.4]} 34... Rxg2+ {[%clk 0:00:16.3]} 35. Kf4 {[%clk 0:00:22]}
35... Ra2 {[%clk 0:00:14.6]} 36. Rc7 {[%clk 0:00:20.6]} 36... Kg6 {[%clk
0:00:13.7]} 37. Rb7 {[%clk 0:00:20]} 37... Ra5 {[%clk 0:00:12.3]} 38. b4 {[%clk
0:00:18.4]} 38... Ra4 {[%clk 0:00:11.8]} 39. Ke5 {[%clk 0:00:17.7]} 39... a5
{[%clk 0:00:11.2]} 40. b5 {[%clk 0:00:15.4]} 40... Rb4 {[%clk 0:00:10.5]} 41.
Kd5 {[%clk 0:00:15.9]} 41... a4 {[%clk 0:00:10.9]} 42. e5 {[%clk 0:00:09.1]}
42... a3 {[%clk 0:00:06.6]} 43. Kc5 {[%clk 0:00:09.6]} 43... a2 {[%clk
0:00:06.8]} 44. Ra7 {[%clk 0:00:10.1]} 44... Rb2 {[%clk 0:00:06.7]} 45. b6
{[%clk 0:00:09.3]} 45... Kf5 {[%clk 0:00:06]} 46. Rxf7+ {[%clk 0:00:06.9]} 46...
Kxe5 {[%clk 0:00:06.4]} 47. Ra7 {[%clk 0:00:07.8]} 47... Rc2+ {[%clk 0:00:06.1]}
48. Kb5 {[%clk 0:00:08.4]} 48... Kd6 {[%clk 0:00:05.9]} 49. Kb4 {[%clk
0:00:06.9]} 49... Kc6 {[%clk 0:00:02.6]} 50. Kb3 {[%clk 0:00:05.7]} 1-0

[Event "Late-Titled-Tuesday-Blitz-June-18-2024"]
[Site "Chess.com"]
[Date "2024.06.18"]
[Round "9"]
[White "ritanovikova"]
[Black "fabianvivasz"]
[Result "1/2-1/2"]
[WhiteElo "2220"]
[BlackElo "2454"]
[TimeControl "180+1"]
[EndTime "15:46:26 PDT"]
[Termination "Game drawn by repetition"]

1. e4 {[%clk 0:02:58.9]} 1... e5 {[%clk 0:02:34.4]} 2. Nf3 {[%clk 0:02:58.7]}
2... Nc6 {[%clk 0:02:33.6]} 3. Bc4 {[%clk 0:02:58.8]} 3... Nf6 {[%clk
0:02:33.6]} 4. d3 {[%clk 0:02:56.5]} 4... Bc5 {[%clk 0:02:33.1]} 5. O-O {[%clk
0:02:51.6]} 5... O-O {[%clk 0:02:31.3]} 6. Bg5 {[%clk 0:02:47.4]} 6... h6 {[%clk
0:02:30.4]} 7. Bh4 {[%clk 0:02:47.2]} 7... Be7 {[%clk 0:02:30.1]} 8. c3 {[%clk
0:02:44.1]} 8... d6 {[%clk 0:02:23.9]} 9. h3 {[%clk 0:02:44]} 9... a6 {[%clk
0:02:15.9]} 10. a4 {[%clk 0:02:42.6]} 10... Kh8 {[%clk 0:02:09.9]} 11. Nbd2
{[%clk 0:02:42.3]} 11... Nh5 {[%clk 0:02:02.6]} 12. Bxe7 {[%clk 0:02:40.1]}
12... Qxe7 {[%clk 0:02:02.2]} 13. d4 {[%clk 0:02:31]} 13... Nf4 {[%clk
0:01:59.1]} 14. Re1 {[%clk 0:02:21.2]} 14... Qf6 {[%clk 0:01:55.3]} 15. Bf1
{[%clk 0:02:15.1]} 15... exd4 {[%clk 0:01:51.5]} 16. cxd4 {[%clk 0:02:02.7]}
16... Nxd4 {[%clk 0:01:50]} 17. Nxd4 {[%clk 0:02:02.8]} 17... Qxd4 {[%clk
0:01:50.3]} 18. Qc2 {[%clk 0:01:46.7]} 18... Be6 {[%clk 0:01:36.5]} 19. Nf3
{[%clk 0:01:46.1]} 19... Qf6 {[%clk 0:01:35.8]} 20. e5 {[%clk 0:01:24.4]} 20...
dxe5 {[%clk 0:01:18.1]} 21. Nxe5 {[%clk 0:01:22.8]} 21... c6 {[%clk 0:01:02.9]}
22. Kh2 {[%clk 0:01:13.3]} 22... Rad8 {[%clk 0:00:59.6]} 23. g3 {[%clk
0:01:11.9]} 23... Ng6 {[%clk 0:00:57.2]} 24. Nd3 {[%clk 0:00:57.1]} 24... Bf5
{[%clk 0:00:54.7]} 25. Re3 {[%clk 0:00:39.3]} 25... Ne5 {[%clk 0:00:41.3]} 26.
Rd1 {[%clk 0:00:24.7]} 26... Bxd3 {[%clk 0:00:31.4]} 27. Bxd3 {[%clk 0:00:23.2]}
27... Rd4 {[%clk 0:00:23.2]} 28. f4 {[%clk 0:00:20.6]} 28... Nxd3 {[%clk
0:00:20.2]} 29. Rexd3 {[%clk 0:00:20.7]} 29... Rfd8 {[%clk 0:00:20.8]} 30. Rxd4
{[%clk 0:00:20.3]} 30... Rxd4 {[%clk 0:00:21.7]} 31. Rxd4 {[%clk 0:00:20.3]}
31... Qxd4 {[%clk 0:00:22.6]} 32. b3 {[%clk 0:00:16.4]} 32... g6 {[%clk
0:00:22.5]} 33. Qe2 {[%clk 0:00:14.5]} 33... Kg7 {[%clk 0:00:22.6]} 34. h4
{[%clk 0:00:13.1]} 34... b5 {[%clk 0:00:22.4]} 35. axb5 {[%clk 0:00:13]} 35...
axb5 {[%clk 0:00:23.3]} 36. Qc2 {[%clk 0:00:12.9]} 36... c5 {[%clk 0:00:22.7]}
37. Qe2 {[%clk 0:00:12.7]} 37... c4 {[%clk 0:00:22.7]} 38. bxc4 {[%clk
0:00:12.9]} 38... bxc4 {[%clk 0:00:23.2]} 39. h5 {[%clk 0:00:09.5]} 39... gxh5
{[%clk 0:00:06.2]} 40. Qxh5 {[%clk 0:00:08.5]} 40... c3 {[%clk 0:00:06]} 41.
Qg4+ {[%clk 0:00:08.7]} 41... Kh7 {[%clk 0:00:05.8]} 42. Qf5+ {[%clk 0:00:08.7]}
42... Kg7 {[%clk 0:00:05.4]} 43. Qg4+ {[%clk 0:00:09]} 43... Kh8 {[%clk
0:00:04]} 44. Qc8+ {[%clk 0:00:08.8]} 44... Kg7 {[%clk 0:00:03.8]} 45. Qg4+
{[%clk 0:00:09.2]} 1/2-1/2

[Event "Late-Titled-Tuesday-Blitz-June-18-2024"]
[Site "Chess.com"]
[Date "2024.06.18"]
[Round "9"]
[White "Losingexperience"]
[Black "bazar-wokzal"]
[Result "1-0"]
[WhiteElo "2747"]
[BlackElo "2597"]
[TimeControl "180+1"]
[EndTime "15:46:27 PDT"]
[Termination "Losingexperience won by checkmate"]

1. e4 {[%clk 0:03:00.9]} 1... Nc6 {[%clk 0:02:53.6]} 2. d4 {[%clk 0:02:57.1]}
2... d5 {[%clk 0:02:53.3]} 3. e5 {[%clk 0:02:57.2]} 3... h5 {[%clk 0:02:52.9]}
4. c3 {[%clk 0:02:55.7]} 4... Bg4 {[%clk 0:02:52.5]} 5. Nf3 {[%clk 0:02:53.5]}
5... Qd7 {[%clk 0:02:51.1]} 6. Be2 {[%clk 0:02:52.9]} 6... f6 {[%clk 0:02:48.7]}
7. O-O {[%clk 0:02:50.7]} 7... O-O-O {[%clk 0:02:43.9]} 8. b4 {[%clk 0:02:46.9]}
8... Bxf3 {[%clk 0:02:40.6]} 9. Bxf3 {[%clk 0:02:45.5]} 9... fxe5 {[%clk
0:02:41]} 10. b5 {[%clk 0:02:45.2]} 10... Na5 {[%clk 0:02:41.2]} 11. dxe5 {[%clk
0:02:44.9]} 11... e6 {[%clk 0:02:36.9]} 12. Be3 {[%clk 0:02:44.2]} 12... Qxb5
{[%clk 0:02:33.1]} 13. Nd2 {[%clk 0:02:40.9]} 13... Bc5 {[%clk 0:02:24.2]} 14.
Bg5 {[%clk 0:02:28.9]} 14... Ne7 {[%clk 0:02:18.3]} 15. Nb3 {[%clk 0:02:28.2]}
15... Nxb3 {[%clk 0:02:10.7]} 16. axb3 {[%clk 0:02:27.5]} 16... Rd7 {[%clk
0:02:06.3]} 17. Qc2 {[%clk 0:02:24.4]} 17... Nc6 {[%clk 0:01:58.1]} 18. Be2
{[%clk 0:01:54]} 18... Qb6 {[%clk 0:01:53.9]} 19. b4 {[%clk 0:01:53.7]} 19...
Be7 {[%clk 0:01:45.8]} 20. Be3 {[%clk 0:01:46.3]} 20... d4 {[%clk 0:01:45.7]}
21. cxd4 {[%clk 0:01:46.4]} 21... Nxd4 {[%clk 0:01:34.6]} 22. Bxd4 {[%clk
0:01:39.9]} 22... Rxd4 {[%clk 0:01:33]} 23. Qg6 {[%clk 0:01:28.9]} 23... Bxb4
{[%clk 0:01:15.7]} 24. Rac1 {[%clk 0:01:17.9]} 24... Bc5 {[%clk 0:00:58.7]} 25.
Bc4 {[%clk 0:01:13.5]} 25... Kb8 {[%clk 0:00:53.5]} 26. Rb1 {[%clk 0:00:52.2]}
26... Qc6 {[%clk 0:00:45.4]} 27. Qxg7 {[%clk 0:00:49.9]} 27... Rhd8 {[%clk
0:00:43.8]} 28. Be2 {[%clk 0:00:43.8]} 28... Bb6 {[%clk 0:00:31.2]} 29. Qf6
{[%clk 0:00:37.4]} 29... a5 {[%clk 0:00:28.1]} 30. Bxh5 {[%clk 0:00:30]} 30...
a4 {[%clk 0:00:28]} 31. Bf3 {[%clk 0:00:30.1]} 31... Qc5 {[%clk 0:00:27.9]} 32.
Qxe6 {[%clk 0:00:25.6]} 32... a3 {[%clk 0:00:27.3]} 33. Rbc1 {[%clk 0:00:18.5]}
33... Qb5 {[%clk 0:00:22.4]} 34. Rb1 {[%clk 0:00:17.5]} 34... Qd3 {[%clk
0:00:19.4]} 35. h3 {[%clk 0:00:13.1]} 35... Qd2 {[%clk 0:00:17.2]} 36. Rxb6
{[%clk 0:00:12.1]} 36... cxb6 {[%clk 0:00:16.9]} 37. Qxb6 {[%clk 0:00:13]} 37...
R4d7 {[%clk 0:00:15.2]} 38. e6 {[%clk 0:00:11.4]} 38... Rc7 {[%clk 0:00:15.4]}
39. Qb3 {[%clk 0:00:06]} 39... a2 {[%clk 0:00:15.4]} 40. Qa3 {[%clk 0:00:03.9]}
40... Rdc8 {[%clk 0:00:14.1]} 41. e7 {[%clk 0:00:04.2]} 41... Rc1 {[%clk
0:00:13.5]} 42. e8=Q {[%clk 0:00:02.8]} 42... Rxf1+ {[%clk 0:00:12.9]} 43. Kxf1
{[%clk 0:00:03.7]} 43... Rxe8 {[%clk 0:00:12.7]} 44. g3 {[%clk 0:00:03.1]} 44...
Qc2 {[%clk 0:00:11]} 45. Kg2 {[%clk 0:00:04]} 45... Qc4 {[%clk 0:00:10.6]} 46.
Qd6+ {[%clk 0:00:04.4]} 46... Ka7 {[%clk 0:00:09.9]} 47. Qd7 {[%clk 0:00:04.9]}
47... Rb8 {[%clk 0:00:09.4]} 48. Qg7 {[%clk 0:00:04.8]} 48... Qc1 {[%clk
0:00:08.5]} 49. Qd4+ {[%clk 0:00:04.7]} 49... b6 {[%clk 0:00:08]} 50. Qa4#
{[%clk 0:00:05]} 1-0

[Event "Late-Titled-Tuesday-Blitz-June-18-2024"]
[Site "Chess.com"]
[Date "2024.06.18"]
[Round "9"]
[White "newyorkmouse"]
[Black "farzadbfd"]
[Result "0-1"]
[WhiteElo "2596"]
[BlackElo "2707"]
[TimeControl "180+1"]
[EndTime "15:46:29 PDT"]
[Termination "farzadbfd won by checkmate"]

1. a3 {[%clk 0:03:00.9]} 1... d5 {[%clk 0:02:59.7]} 2. Nf3 {[%clk 0:02:58.4]}
2... Nf6 {[%clk 0:02:59.7]} 3. c4 {[%clk 0:02:58.1]} 3... c6 {[%clk 0:02:55.3]}
4. g3 {[%clk 0:02:52.5]} 4... Bf5 {[%clk 0:02:55.1]} 5. b3 {[%clk 0:02:51.7]}
5... e6 {[%clk 0:02:51.8]} 6. Bg2 {[%clk 0:02:51.6]} 6... h6 {[%clk 0:02:49.9]}
7. d3 {[%clk 0:02:50.9]} 7... Be7 {[%clk 0:02:49.6]} 8. Bb2 {[%clk 0:02:50.4]}
8... O-O {[%clk 0:02:49.6]} 9. O-O {[%clk 0:02:50.5]} 9... a5 {[%clk 0:02:49.6]}
10. Nbd2 {[%clk 0:02:49.4]} 10... Na6 {[%clk 0:02:49.2]} 11. Qc2 {[%clk
0:02:47.1]} 11... Qb6 {[%clk 0:02:48.3]} 12. Ne5 {[%clk 0:02:46.4]} 12... Rfd8
{[%clk 0:02:42.9]} 13. Bc3 {[%clk 0:02:40.6]} 13... d4 {[%clk 0:02:26.6]} 14.
Bb2 {[%clk 0:02:39]} 14... c5 {[%clk 0:02:25]} 15. e3 {[%clk 0:02:30.6]} 15...
dxe3 {[%clk 0:02:04.7]} 16. fxe3 {[%clk 0:02:31.5]} 16... Nd7 {[%clk 0:02:03.8]}
17. Ne4 {[%clk 0:02:16]} 17... Nxe5 {[%clk 0:01:59.7]} 18. Bxe5 {[%clk
0:02:15.7]} 18... f6 {[%clk 0:01:58.4]} 19. Bb2 {[%clk 0:02:13.1]} 19... Rd7
{[%clk 0:01:56.5]} 20. Rad1 {[%clk 0:01:57.4]} 20... Rad8 {[%clk 0:01:55.7]} 21.
Rd2 {[%clk 0:01:48]} 21... Nc7 {[%clk 0:01:55.9]} 22. h3 {[%clk 0:01:46.6]}
22... Ne8 {[%clk 0:01:53.3]} 23. g4 {[%clk 0:01:47]} 23... Bg6 {[%clk
0:01:51.7]} 24. Qc3 {[%clk 0:01:34.9]} 24... Nd6 {[%clk 0:01:51]} 25. Nxf6+
{[%clk 0:01:27.1]} 25... gxf6 {[%clk 0:01:44.8]} 26. Rxf6 {[%clk 0:01:28]} 26...
Bxf6 {[%clk 0:01:45.1]} 27. Qxf6 {[%clk 0:01:28.5]} 27... Kh7 {[%clk 0:01:44]}
28. h4 {[%clk 0:01:12.3]} 28... Rf7 {[%clk 0:01:41.7]} 29. Qe5 {[%clk
0:01:10.4]} 29... Qxb3 {[%clk 0:00:50.3]} 30. h5 {[%clk 0:01:07.4]} 30... Bxd3
{[%clk 0:00:50.9]} 31. Qxe6 {[%clk 0:00:41.8]} 31... Rdf8 {[%clk 0:00:06.8]} 32.
Qxd6 {[%clk 0:00:36.5]} 32... Bb1 {[%clk 0:00:07.4]} 33. e4 {[%clk 0:00:18.8]}
33... Qe3+ {[%clk 0:00:07.6]} 34. Kh2 {[%clk 0:00:06.8]} 34... Bxe4 {[%clk
0:00:08.2]} 35. Rc2 {[%clk 0:00:01.8]} 35... Bxc2 {[%clk 0:00:07.5]} 36. Qd5
{[%clk 0:00:01.6]} 36... Qf4+ {[%clk 0:00:07.4]} 37. Kh3 {[%clk 0:00:02]} 37...
Qe3+ {[%clk 0:00:07]} 38. Kh2 {[%clk 0:00:02.6]} 38... Qg5 {[%clk 0:00:07.6]}
39. Qd2 {[%clk 0:00:02.1]} 39... Bb1 {[%clk 0:00:07.8]} 40. Qc1 {[%clk
0:00:01.7]} 40... Qxc1 {[%clk 0:00:07.9]} 41. Bxc1 {[%clk 0:00:02.3]} 41... Bc2
{[%clk 0:00:08.3]} 42. Bb2 {[%clk 0:00:02.6]} 42... Rf2 {[%clk 0:00:08.7]} 43.
Kg3 {[%clk 0:00:02.6]} 43... Rd2 {[%clk 0:00:09]} 44. Bd5 {[%clk 0:00:02.4]}
44... Rxd5 {[%clk 0:00:08.9]} 45. cxd5 {[%clk 0:00:02.8]} 45... Be4 {[%clk
0:00:09.6]} 46. d6 {[%clk 0:00:03.1]} 46... Rf3+ {[%clk 0:00:09.6]} 47. Kh4
{[%clk 0:00:03.1]} 47... Rd3 {[%clk 0:00:09.2]} 48. Be5 {[%clk 0:00:02.9]} 48...
Bc6 {[%clk 0:00:09.1]} 49. g5 {[%clk 0:00:02.5]} 49... Bd7 {[%clk 0:00:09.7]}
50. g6+ {[%clk 0:00:02.5]} 50... Kg8 {[%clk 0:00:10.3]} 51. Bg3 {[%clk
0:00:02.1]} 51... a4 {[%clk 0:00:09]} 52. g7 {[%clk 0:00:02.2]} 52... b5 {[%clk
0:00:07.6]} 53. Be5 {[%clk 0:00:01.2]} 53... Rh3# {[%clk 0:00:08.5]} 0-1